[Event "Championnat du monde jeunes U12"]
[Date "2024.11.20"]
[White "Mamarasulov, Husan"]
[Black "Italiani, Luca"]
[WhiteElo "1407"]
[BlackElo "1634"]
[Round "6.62"]
[Result "1-0"]
[TimeControl "5400+30"]

1. d4 {[%clk 1:30:55]} 1... Nf6 {[%clk 1:30:53]} 2. c4 {[%clk 1:31:08]} 2... e6
{[%clk 1:31:16]} 3. g3 {[%clk 1:31:24]} 3... d5 {[%clk 1:31:10]} 4. Bg2 {[%clk
1:30:54]} 4... Nc6 {[%clk 1:31:25]} 5. Nf3 {[%clk 1:30:15]} 5... Bb4+ {[%clk
1:31:36]} 6. Bd2 {[%clk 1:30:34]} 6... Bxd2+ {[%clk 1:31:50]} 7. Nbxd2 {[%clk
1:30:39]} 7... O-O {[%clk 1:32:10]} 8. O-O {[%clk 1:30:52]} 8... Re8 {[%clk
1:31:20]} 9. Rc1 {[%clk 1:28:16]} 9... dxc4 {[%clk 1:26:44]} 10. Nxc4 {[%clk
1:27:59]} 10... h6 {[%clk 1:24:17]} 11. Nce5 {[%clk 1:27:19]} 11... Nxe5 {[%clk
1:22:38]} 12. dxe5 {[%clk 1:27:14]} 12... Qxd1 {[%clk 1:16:44]} 13. Rfxd1 {[%clk
1:27:32]} 13... Nd5 {[%clk 1:16:46]} 14. e4 {[%clk 1:23:46]} 14... Nb4 {[%clk
1:16:55]} 15. a3 {[%clk 1:20:43]} 15... Nc6 {[%clk 1:17:07]} 16. b4 {[%clk
1:19:29]} 16... a6 {[%clk 1:17:12]} 17. h3 {[%clk 1:14:30]} 17... f6 {[%clk
1:13:22]} 18. exf6 {[%clk 1:13:21]} 18... gxf6 {[%clk 1:13:42]} 19. Nd4 {[%clk
1:12:20]} 19... Nxd4 {[%clk 1:13:36]} 20. Rxd4 {[%clk 1:12:25]} 20... e5 {[%clk
1:13:21]} 21. Rd3 {[%clk 1:11:55]} 21... c6 {[%clk 1:11:37]} 22. f4 {[%clk
1:08:56]} 22... Be6 {[%clk 1:08:25]} 23. f5 {[%clk 1:07:20]} 23... Bf7 {[%clk
1:08:02]} 24. Rcd1 {[%clk 1:06:45]} 24... Bc4 {[%clk 1:05:02]} 25. Rd7 {[%clk
1:01:33]} 25... Rab8 {[%clk 1:04:20]} 26. R1d6 {[%clk 1:00:09]} 26... Rf8 {[%clk
1:04:13]} 27. Bf1 {[%clk 0:59:37]} 27... Bb3 {[%clk 1:04:26]} 28. Rc7 {[%clk
0:58:43]} 28... Rf7 {[%clk 1:03:29]} 29. Rxf7 {[%clk 0:56:16]} 29... Kxf7 {[%clk
1:03:01]} 30. Rd7+ {[%clk 0:55:35]} 30... Kg8 {[%clk 1:02:31]} 31. Kf2 {[%clk
0:54:28]} 31... Ba2 {[%clk 1:02:19]} 32. Ke3 {[%clk 0:53:26]} 32... Bb3 {[%clk
1:01:03]} 33. Kd2 {[%clk 0:52:06]} 33... Ba2 {[%clk 1:01:13]} 34. Kc3 {[%clk
0:52:20]} 34... h5 {[%clk 0:58:51]} 35. Bc4+ {[%clk 0:51:38]} 35... Bxc4 {[%clk
0:59:13]} 36. Kxc4 {[%clk 0:52:02]} 36... b5+ {[%clk 0:58:58]} 37. Kc5 {[%clk
0:52:13]} 37... Rc8 {[%clk 0:58:10]} 38. Rd6 {[%clk 0:50:52]} 38... Kg7 {[%clk
0:58:13]} 39. Rxc6 {[%clk 0:48:18]} 39... Rxc6+ {[%clk 0:58:30]} 40. Kxc6 {[%clk
0:48:30]} 40... Kh6 {[%clk 0:58:54]} 41. Kb6 {[%clk 0:48:24]} 41... Kg5 {[%clk
0:59:15]} 42. Kxa6 {[%clk 0:48:31]} 42... h4 {[%clk 0:59:37]} 43. gxh4+ {[%clk
0:48:40]} 43... Kxh4 {[%clk 1:00:00]} 44. Kxb5 {[%clk 0:48:58]} 44... Kxh3
{[%clk 1:00:23]} 45. a4 {[%clk 0:49:14]} 45... Kg4 {[%clk 1:00:47]} 46. a5
{[%clk 0:49:41]} 46... Kf4 {[%clk 1:01:15]} 47. a6 {[%clk 0:50:00]} 47... Kxe4
{[%clk 1:01:40]} 48. a7 {[%clk 0:50:25]} 48... Kd3 {[%clk 1:02:06]} 49. a8=Q
{[%clk 0:50:27]} 49... e4 {[%clk 1:02:31]} 50. Qd5+ {[%clk 0:50:32]} 50... Ke3
{[%clk 1:02:48]} 51. Kc4 {[%clk 0:50:45]} 51... Kf4 {[%clk 1:03:06]} 52. Kd4
{[%clk 0:51:06]} 52... e3 {[%clk 1:03:26]} 53. Qe4+ {[%clk 0:51:25]} 53... Kg5
{[%clk 1:03:41]} 54. Qxe3+ {[%clk 0:51:45]} 54... Kxf5 {[%clk 1:04:05]} 55. b5
{[%clk 0:51:55]} 55... Kg4 {[%clk 1:04:25]} 56. b6 {[%clk 0:52:13]} 56... f5
{[%clk 1:04:51]} 57. b7 {[%clk 0:52:32]} 57... f4 {[%clk 1:05:15]} 58. Qxf4+
{[%clk 0:52:54]} 58... Kxf4 {[%clk 1:04:32]} 59. b8=Q+ {[%clk 0:52:49]} 59...
Kf3 {[%clk 1:03:56]} 60. Qe5 {[%clk 0:53:04]} 60... Kg4 {[%clk 1:04:16]} 61. Qf6
{[%clk 0:53:25]} 61... Kg3 {[%clk 1:04:35]} 62. Qf5 {[%clk 0:53:46]} 62... Kg2
{[%clk 1:04:55]} 63. Qf4 {[%clk 0:54:08]} 63... Kh1 {[%clk 1:05:04]} 64. Qg4
{[%clk 0:54:30]} 64... Kh2 {[%clk 1:05:24]} 65. Ke3 {[%clk 0:54:50]} 65... Kh1
{[%clk 1:05:44]} 66. Kf2 {[%clk 0:55:13]} 66... Kh2 {[%clk 1:06:01]} 67. Qh4#
{[%clk 0:55:20]} 1-0

[Variant "Standard"]
[Site "Europe Echecs"]

[Event "Championnat du monde jeunes U12"]
[Date "2024.11.20"]
[White "Pennacchia, Domenico"]
[Black "Mintz, Nathan"]
[WhiteElo "1510"]
[BlackElo "1633"]
[Round "6.63"]
[Result "0-1"]
[TimeControl "5400+30"]

1. e4 {[%clk 1:30:56]} 1... c5 {[%clk 1:30:56]} 2. Nf3 {[%clk 1:30:52]} 2... d6
{[%clk 1:31:21]} 3. Bb5+ {[%clk 1:31:15]} 3... Bd7 {[%clk 1:31:29]} 4. Bxd7+
{[%clk 1:31:14]} 4... Nxd7 {[%clk 1:31:35]} 5. O-O {[%clk 1:30:49]} 5... Ngf6
{[%clk 1:31:52]} 6. Re1 {[%clk 1:30:48]} 6... e6 {[%clk 1:31:56]} 7. c3 {[%clk
1:30:51]} 7... Be7 {[%clk 1:32:00]} 8. d4 {[%clk 1:30:50]} 8... cxd4 {[%clk
1:31:59]} 9. Nxd4 {[%clk 1:29:03]} 9... a6 {[%clk 1:30:05]} 10. Bg5 {[%clk
1:27:42]} 10... O-O {[%clk 1:28:42]} 11. Nd2 {[%clk 1:26:57]} 11... Rc8 {[%clk
1:26:38]} 12. Qe2 {[%clk 1:25:50]} 12... Qc7 {[%clk 1:23:25]} 13. Rad1 {[%clk
1:22:40]} 13... b5 {[%clk 1:19:53]} 14. N2f3 {[%clk 1:20:23]} 14... Rfd8 {[%clk
1:07:25]} 15. h4 {[%clk 1:12:58]} 15... h6 {[%clk 1:03:49]} 16. Bxf6 {[%clk
1:11:32]} 16... Bxf6 {[%clk 1:03:16]} 17. Nh2 {[%clk 1:10:36]} 17... Bxh4 {[%clk
0:56:21]} 18. Qh5 {[%clk 1:09:25]} 18... Bg5 {[%clk 0:51:00]} 19. Ng4 {[%clk
1:08:38]} 19... Nf6 {[%clk 0:48:34]} 20. Nxf6+ {[%clk 1:09:00]} 20... Bxf6
{[%clk 0:48:21]} 21. Rd3 {[%clk 1:08:39]} 21... Qc5 {[%clk 0:46:50]} 22. Qh3
{[%clk 1:08:21]} 22... Qg5 {[%clk 0:39:02]} 23. Rg3 {[%clk 1:07:18]} 23... Qh4
{[%clk 0:38:16]} 24. Qxh4 {[%clk 1:06:47]} 24... Bxh4 {[%clk 0:38:33]} 25. Rg4
{[%clk 1:06:56]} 25... Bf6 {[%clk 0:38:07]} 26. Nb3 {[%clk 1:06:59]} 26... Rc4
{[%clk 0:32:59]} 27. Na5 {[%clk 1:06:19]} 27... Ra4 {[%clk 0:27:15]} 28. Nc6
{[%clk 1:06:28]} 28... Rc8 {[%clk 0:26:44]} 29. Nb4 {[%clk 1:06:39]} 29... a5
{[%clk 0:26:09]} 30. Nc2 {[%clk 1:00:32]} 30... Rxa2 {[%clk 0:25:23]} 31. Rb1
{[%clk 1:00:38]} 31... b4 {[%clk 0:24:41]} 32. Nd4 {[%clk 0:58:41]} 32... Bxd4
{[%clk 0:24:12]} 33. cxd4 {[%clk 0:59:05]} 33... Rc2 {[%clk 0:24:08]} 34. b3
{[%clk 0:58:53]} 34... Rxf2 {[%clk 0:22:54]} 35. Rf1 {[%clk 0:58:39]} 35...
Rxf1+ {[%clk 0:23:04]} 36. Kxf1 {[%clk 0:59:07]} 36... Rd2 {[%clk 0:22:45]} 0-1

[Variant "Standard"]
[Site "Europe Echecs"]

[Event "Championnat du monde jeunes U12"]
[Date "2024.11.22"]
[White "Radzimski, Antoni"]
[Black "Golis, Wiktor"]
[WhiteElo "2188"]
[BlackElo "2343"]
[Round "7.1"]
[Result "1-0"]
[TimeControl "5400+30"]

1. d4 {[%clk 1:30:46]} 1... d5 {[%clk 1:30:42]} 2. c4 {[%clk 1:31:08]} 2... e6
{[%clk 1:31:02]} 3. Nc3 {[%clk 1:31:05]} 3... Nf6 {[%clk 1:31:08]} 4. Nf3 {[%clk
1:31:29]} 4... dxc4 {[%clk 1:24:28]} 5. e3 {[%clk 1:28:44]} 5... a6 {[%clk
1:24:49]} 6. a4 {[%clk 1:27:29]} 6... b6 {[%clk 1:24:47]} 7. Bxc4 {[%clk
1:27:48]} 7... Bb7 {[%clk 1:24:32]} 8. O-O {[%clk 1:25:25]} 8... Bb4 {[%clk
1:23:35]} 9. Qe2 {[%clk 1:21:44]} 9... O-O {[%clk 1:22:15]} 10. Bd3 {[%clk
1:16:22]} 10... c5 {[%clk 1:09:54]} 11. dxc5 {[%clk 1:12:02]} 11... Bxc5 {[%clk
0:50:47]} 12. Rd1 {[%clk 1:09:26]} 12... Qc7 {[%clk 0:47:37]} 13. b3 {[%clk
1:01:30]} 13... Nc6 {[%clk 0:33:10]} 14. Bb2 {[%clk 1:00:02]} 14... Nb4 {[%clk
0:31:57]} 15. h3 {[%clk 0:50:37]} 15... Nxd3 {[%clk 0:28:34]} 16. Rxd3 {[%clk
0:50:57]} 16... Rfd8 {[%clk 0:25:24]} 17. Rad1 {[%clk 0:50:11]} 17... Rxd3
{[%clk 0:25:15]} 18. Rxd3 {[%clk 0:48:54]} 18... Rc8 {[%clk 0:24:11]} 19. Rd1
{[%clk 0:40:28]} 19... h6 {[%clk 0:21:03]} 20. Nb1 {[%clk 0:38:38]} 20... Ne4
{[%clk 0:16:50]} 21. Nbd2 {[%clk 0:37:22]} 21... Nxd2 {[%clk 0:16:39]} 22. Nxd2
{[%clk 0:36:37]} 22... Qe7 {[%clk 0:15:37]} 23. Nf3 {[%clk 0:31:05]} 23... Rd8
{[%clk 0:14:15]} 24. Ne5 {[%clk 0:28:03]} 24... Rxd1+ {[%clk 0:08:39]} 25. Qxd1
{[%clk 0:28:27]} 25... Qg5 {[%clk 0:08:47]} 26. Nf3 {[%clk 0:27:18]} 26... Qg6
{[%clk 0:08:18]} 27. Be5 {[%clk 0:19:02]} 27... Bd5 {[%clk 0:05:56]} 28. Ne1
{[%clk 0:18:22]} 28... Qe4 {[%clk 0:05:17]} 29. Nf3 {[%clk 0:18:00]} 29... g5
{[%clk 0:03:17]} 30. Ba1 {[%clk 0:15:51]} 30... h5 {[%clk 0:02:04]} 31. Qc1
{[%clk 0:14:42]} 31... e5 {[%clk 0:00:57]} 32. b4 {[%clk 0:13:27]} 32... g4
{[%clk 0:00:48]} 33. bxc5 {[%clk 0:11:32]} 33... gxf3 {[%clk 0:01:17]} 34. g3
{[%clk 0:11:43]} 34... bxc5 {[%clk 0:00:54]} 35. Kh2 {[%clk 0:11:22]} 35... c4
{[%clk 0:00:50]} 36. Qb2 {[%clk 0:10:58]} 36... f6 {[%clk 0:01:01]} 37. Qc1
{[%clk 0:10:31]} 37... Be6 {[%clk 0:00:51]} 38. a5 {[%clk 0:09:35]} 38... Qf5
{[%clk 0:00:59]} 39. Qf1 {[%clk 0:09:59]} 39... Kf7 {[%clk 0:01:24]} 40. Bc3
{[%clk 0:10:18]} 40... Qc2 {[%clk 0:00:56]} 41. Qe1 {[%clk 0:10:21]} 41... Ke8
{[%clk 0:00:44]} 42. Bb4 {[%clk 0:08:55]} 42... Qf5 {[%clk 0:00:40]} 43. Qf1
{[%clk 0:09:19]} 43... Kd7 {[%clk 0:00:35]} 44. Bd2 {[%clk 0:08:29]} 44... Kc6
{[%clk 0:00:50]} 45. Bb4 {[%clk 0:08:42]} 45... Qc2 {[%clk 0:00:52]} 46. h4
{[%clk 0:07:43]} 46... Qf5 {[%clk 0:00:34]} 47. Kg1 {[%clk 0:07:30]} 47... Qh3
{[%clk 0:00:34]} 48. Bc3 {[%clk 0:06:42]} 48... Qf5 {[%clk 0:00:33]} 49. Qd1
{[%clk 0:06:41]} 49... Qh3 {[%clk 0:00:32]} 50. Qxf3+ {[%clk 0:06:50]} 50... Kd7
{[%clk 0:00:34]} 51. Qb7+ {[%clk 0:06:53]} 51... Ke8 {[%clk 0:00:44]} 52. Bb4
{[%clk 0:05:45]} 52... Bd7 {[%clk 0:00:58]} 53. Qxa6 {[%clk 0:05:44]} 53... Qg4
{[%clk 0:00:32]} 54. Qxf6 {[%clk 0:05:50]} 54... Qe6 {[%clk 0:00:35]} 55. Qf8#
{[%clk 0:06:15]} 1-0

[Variant "Standard"]
[Site "Europe Echecs"]

[Event "Championnat du monde jeunes U12"]
[Date "2024.11.22"]
[White "Birmenko, Nikolay"]
[Black "Smirnov, Mark"]
[WhiteElo "2084"]
[BlackElo "2300"]
[Round "7.2"]
[Result "0-1"]
[TimeControl "5400+30"]

1. e4 {[%clk 1:30:57]} 1... e5 {[%clk 1:30:46]} 2. Nf3 {[%clk 1:31:22]} 2... Nc6
{[%clk 1:31:11]} 3. Bc4 {[%clk 1:31:39]} 3... Bc5 {[%clk 1:29:46]} 4. d3 {[%clk
1:31:54]} 4... Nf6 {[%clk 1:29:34]} 5. O-O {[%clk 1:32:17]} 5... d6 {[%clk
1:29:36]} 6. c3 {[%clk 1:32:30]} 6... a6 {[%clk 1:28:06]} 7. a4 {[%clk 1:29:52]}
7... Ba7 {[%clk 1:27:37]} 8. Be3 {[%clk 1:26:18]} 8... Bxe3 {[%clk 1:23:09]} 9.
fxe3 {[%clk 1:26:38]} 9... O-O {[%clk 1:22:47]} 10. Nbd2 {[%clk 1:24:30]} 10...
Ne7 {[%clk 1:11:46]} 11. Nh4 {[%clk 1:14:19]} 11... c6 {[%clk 1:03:04]} 12. Qf3
{[%clk 1:08:31]} 12... d5 {[%clk 0:59:12]} 13. exd5 {[%clk 1:00:09]} 13... cxd5
{[%clk 0:59:06]} 14. Bb3 {[%clk 0:58:22]} 14... Be6 {[%clk 0:54:35]} 15. d4
{[%clk 0:51:53]} 15... Qb8 {[%clk 0:47:40]} 16. Qg3 {[%clk 0:48:10]} 16... exd4
{[%clk 0:44:59]} 17. Qxb8 {[%clk 0:48:28]} 17... Raxb8 {[%clk 0:45:24]} 18. exd4
{[%clk 0:48:25]} 18... a5 {[%clk 0:44:45]} 19. Bc2 {[%clk 0:45:48]} 19... Nc8
{[%clk 0:34:38]} 20. Nf5 {[%clk 0:35:02]} 20... g6 {[%clk 0:20:28]} 21. Ne7+
{[%clk 0:23:28]} 21... Nxe7 {[%clk 0:18:50]} 22. Rxf6 {[%clk 0:23:52]} 22... b5
{[%clk 0:11:43]} 23. Nb3 {[%clk 0:21:15]} 23... bxa4 {[%clk 0:11:12]} 24. Rxa4
{[%clk 0:21:25]} 24... Nf5 {[%clk 0:11:02]} 25. Nxa5 {[%clk 0:14:15]} 25... Rxb2
{[%clk 0:06:28]} 26. Bxf5 {[%clk 0:14:32]} 26... gxf5 {[%clk 0:04:17]} 27. Rh6
{[%clk 0:13:52]} 27... Ra8 {[%clk 0:03:56]} 28. Ra3 {[%clk 0:13:33]} 28... Rb1+
{[%clk 0:04:07]} 29. Kf2 {[%clk 0:13:57]} 29... Rb5 {[%clk 0:04:33]} 30. Nc4
{[%clk 0:13:51]} 30... Rxa3 {[%clk 0:05:02]} 31. Nxa3 {[%clk 0:14:18]} 31... Rb3
{[%clk 0:05:31]} 32. c4 {[%clk 0:14:20]} 32... Rxa3 {[%clk 0:05:06]} 33. c5
{[%clk 0:14:26]} 33... Kg7 {[%clk 0:04:11]} 34. Rh4 {[%clk 0:14:52]} 34... Bd7
{[%clk 0:03:56]} 35. Rf4 {[%clk 0:15:13]} 35... Kg6 {[%clk 0:04:02]} 36. g3
{[%clk 0:15:38]} 36... Bb5 {[%clk 0:03:59]} 37. Rh4 {[%clk 0:15:43]} 37... Bd3
{[%clk 0:04:19]} 38. Rf4 {[%clk 0:16:08]} 38... Be4 {[%clk 0:04:44]} 39. h4
{[%clk 0:16:35]} 39... Rd3 {[%clk 0:05:03]} 0-1

[Variant "Standard"]
[Site "Europe Echecs"]

[Event "Championnat du monde jeunes U12"]
[Date "2024.11.22"]
[White "Obidjonov, Oriyat"]
[Black "Lacan Rus, David"]
[WhiteElo "2074"]
[BlackElo "2274"]
[Round "7.3"]
[Result "0-1"]
[TimeControl "5400+30"]

1. e4 {[%clk 1:30:58]} 1... c5 {[%clk 1:31:00]} 2. Nf3 {[%clk 1:31:14]} 2... Nc6
{[%clk 1:31:26]} 3. Bb5 {[%clk 1:31:33]} 3... e6 {[%clk 1:29:53]} 4. O-O {[%clk
1:30:06]} 4... Nge7 {[%clk 1:29:43]} 5. Re1 {[%clk 1:29:47]} 5... Nd4 {[%clk
1:30:07]} 6. Nxd4 {[%clk 1:30:10]} 6... cxd4 {[%clk 1:30:30]} 7. c3 {[%clk
1:30:12]} 7... a6 {[%clk 1:30:46]} 8. Be2 {[%clk 1:30:36]} 8... Nc6 {[%clk
1:30:59]} 9. d3 {[%clk 1:30:57]} 9... Bc5 {[%clk 1:29:46]} 10. Nd2 {[%clk
1:30:53]} 10... O-O {[%clk 1:25:52]} 11. a3 {[%clk 1:16:58]} 11... d5 {[%clk
1:09:11]} 12. Bf3 {[%clk 1:06:14]} 12... Ba7 {[%clk 1:01:17]} 13. exd5 {[%clk
0:58:35]} 13... exd5 {[%clk 1:01:44]} 14. c4 {[%clk 0:58:21]} 14... Be6 {[%clk
0:59:48]} 15. cxd5 {[%clk 0:55:59]} 15... Bxd5 {[%clk 1:00:11]} 16. Bxd5 {[%clk
0:55:59]} 16... Qxd5 {[%clk 1:00:39]} 17. Ne4 {[%clk 0:54:14]} 17... f5 {[%clk
0:50:50]} 18. Ng3 {[%clk 0:45:55]} 18... f4 {[%clk 0:46:56]} 19. Nh5 {[%clk
0:43:23]} 19... Bb8 {[%clk 0:38:32]} 20. Qg4 {[%clk 0:23:24]} 20... Qf7 {[%clk
0:37:45]} 21. Bd2 {[%clk 0:22:31]} 21... Ne5 {[%clk 0:27:05]} 22. Qh4 {[%clk
0:22:04]} 22... Qg6 {[%clk 0:24:36]} 23. Kh1 {[%clk 0:19:54]} 23... Nxd3 {[%clk
0:18:30]} 24. Bb4 {[%clk 0:13:14]} 24... Nxe1 {[%clk 0:15:14]} 25. Rxe1 {[%clk
0:12:50]} 25... Bd6 {[%clk 0:15:23]} 26. Bxd6 {[%clk 0:11:08]} 26... Qxd6 {[%clk
0:15:53]} 27. Qg5 {[%clk 0:10:08]} 27... Qg6 {[%clk 0:15:21]} 28. Qd5+ {[%clk
0:10:33]} 28... Kh8 {[%clk 0:15:28]} 29. h3 {[%clk 0:10:49]} 29... Rf5 {[%clk
0:14:10]} 30. Qxb7 {[%clk 0:11:14]} 30... Rg8 {[%clk 0:14:28]} 31. Re7 {[%clk
0:11:20]} 31... Qxh5 {[%clk 0:14:01]} 32. Qd7 {[%clk 0:11:38]} 32... Rd5 {[%clk
0:12:47]} 0-1

[Variant "Standard"]
[Site "Europe Echecs"]

[Event "Championnat du monde jeunes U12"]
[Date "2024.11.22"]
[White "Negrean, Andrei"]
[Black "Gao, Heye"]
[WhiteElo "2255"]
[BlackElo "1933"]
[Round "7.4"]
[Result "1-0"]
[TimeControl "5400+30"]

1. d4 {[%clk 1:30:53]} 1... d5 {[%clk 1:30:33]} 2. c4 {[%clk 1:31:05]} 2... c6
{[%clk 1:30:36]} 3. Nf3 {[%clk 1:30:14]} 3... Nf6 {[%clk 1:30:05]} 4. Nc3 {[%clk
1:30:02]} 4... e6 {[%clk 1:28:50]} 5. Bg5 {[%clk 1:29:53]} 5... Nbd7 {[%clk
1:28:26]} 6. cxd5 {[%clk 1:29:19]} 6... exd5 {[%clk 1:27:20]} 7. e3 {[%clk
1:29:10]} 7... Bd6 {[%clk 1:25:18]} 8. Bd3 {[%clk 1:26:46]} 8... h6 {[%clk
1:24:13]} 9. Bh4 {[%clk 1:26:49]} 9... O-O {[%clk 1:22:03]} 10. O-O {[%clk
1:25:35]} 10... Re8 {[%clk 1:21:26]} 11. Rb1 {[%clk 1:22:29]} 11... a5 {[%clk
1:17:51]} 12. a3 {[%clk 1:18:06]} 12... Qc7 {[%clk 1:15:10]} 13. Qc2 {[%clk
1:07:07]} 13... b6 {[%clk 1:06:02]} 14. Rfc1 {[%clk 1:00:34]} 14... Qb8 {[%clk
1:04:01]} 15. e4 {[%clk 0:44:50]} 15... Bf4 {[%clk 1:00:42]} 16. Re1 {[%clk
0:40:25]} 16... g5 {[%clk 0:55:21]} 17. Bg3 {[%clk 0:36:31]} 17... Bxg3 {[%clk
0:50:57]} 18. hxg3 {[%clk 0:36:37]} 18... Ba6 {[%clk 0:49:26]} 19. Bxa6 {[%clk
0:34:28]} 19... Rxa6 {[%clk 0:48:13]} 20. e5 {[%clk 0:34:13]} 20... Nh7 {[%clk
0:45:29]} 21. e6 {[%clk 0:34:16]} 21... Ndf8 {[%clk 0:36:24]} 22. exf7+ {[%clk
0:33:55]} 22... Kxf7 {[%clk 0:36:33]} 23. Ne5+ {[%clk 0:33:19]} 23... Kg7 {[%clk
0:33:43]} 24. Nxc6 {[%clk 0:31:15]} 24... Qc8 {[%clk 0:30:01]} 25. Nxd5 {[%clk
0:29:55]} 25... b5 {[%clk 0:25:42]} 26. Nde7 {[%clk 0:26:33]} 26... Qd7 {[%clk
0:24:40]} 27. d5 {[%clk 0:26:23]} 27... Nf6 {[%clk 0:24:02]} 28. Nf5+ {[%clk
0:25:50]} 28... Kh8 {[%clk 0:24:10]} 29. Rxe8 {[%clk 0:25:07]} 29... Qxe8 {[%clk
0:24:20]} 30. Qc3 {[%clk 0:24:40]} 30... Nd7 {[%clk 0:22:47]} 31. Re1 {[%clk
0:24:08]} 31... Qf8 {[%clk 0:22:43]} 32. Nce7 {[%clk 0:24:11]} 1-0

[Variant "Standard"]
[Site "Europe Echecs"]

[Event "Championnat du monde jeunes U12"]
[Date "2024.11.22"]
[White "Sahbudak, Baris Cinar"]
[Black "Fulgentini, Edoardo"]
[WhiteElo "2264"]
[BlackElo "2075"]
[Round "7.5"]
[Result "1-0"]
[TimeControl "5400+30"]

1. e4 {[%clk 1:30:50]} 1... c5 {[%clk 1:30:55]} 2. Nf3 {[%clk 1:30:26]} 2... Nc6
{[%clk 1:30:40]} 3. Bb5 {[%clk 1:29:47]} 3... e6 {[%clk 1:31:05]} 4. O-O {[%clk
1:30:06]} 4... Nge7 {[%clk 1:31:32]} 5. c3 {[%clk 1:29:06]} 5... a6 {[%clk
1:31:45]} 6. Ba4 {[%clk 1:29:30]} 6... b5 {[%clk 1:31:49]} 7. Bc2 {[%clk
1:29:52]} 7... Bb7 {[%clk 1:32:17]} 8. d4 {[%clk 1:29:28]} 8... cxd4 {[%clk
1:31:40]} 9. Nxd4 {[%clk 1:29:38]} 9... Ng6 {[%clk 1:23:27]} 10. Be3 {[%clk
1:25:27]} 10... Be7 {[%clk 1:21:39]} 11. Nd2 {[%clk 1:20:04]} 11... O-O {[%clk
1:18:30]} 12. Nxc6 {[%clk 1:15:23]} 12... Bxc6 {[%clk 1:16:19]} 13. f4 {[%clk
1:09:27]} 13... Qc7 {[%clk 1:11:51]} 14. Rc1 {[%clk 0:59:49]} 14... Qb7 {[%clk
1:08:23]} 15. g3 {[%clk 0:48:58]} 15... Rfd8 {[%clk 0:58:49]} 16. Qg4 {[%clk
0:46:59]} 16... Bf6 {[%clk 0:47:11]} 17. h4 {[%clk 0:30:37]} 17... b4 {[%clk
0:40:32]} 18. h5 {[%clk 0:24:10]} 18... bxc3 {[%clk 0:32:48]} 19. bxc3 {[%clk
0:20:02]} 19... Nf8 {[%clk 0:31:42]} 20. e5 {[%clk 0:15:50]} 20... Be7 {[%clk
0:30:20]} 21. f5 {[%clk 0:11:50]} 21... exf5 {[%clk 0:29:46]} 22. Bxf5 {[%clk
0:10:10]} 22... Qb5 {[%clk 0:28:32]} 23. Kh2 {[%clk 0:07:11]} 23... g6 {[%clk
0:22:52]} 24. Bd4 {[%clk 0:06:21]} 24... Qd5 {[%clk 0:17:07]} 25. Rf2 {[%clk
0:04:45]} 25... Ne6 {[%clk 0:16:20]} 26. Be4 {[%clk 0:01:47]} 26... Qxa2 {[%clk
0:15:48]} 27. hxg6 fxg6 {[%clk 0:15:41]} 28. Bxg6 {[%clk 0:01:00]} 28... hxg6
{[%clk 0:15:41]} 29. Qxg6+ Ng7 30. e6 {[%clk 0:01:03]} 30... Bf8 {[%clk
0:09:14]} 31. Rxf8+ {[%clk 0:01:23]} 1-0

[Variant "Standard"]
[Site "Europe Echecs"]

[Event "Championnat du monde jeunes U12"]
[Date "2024.11.22"]
[White "Luger, Sam"]
[Black "Torres Rebolledo, Alvaro"]
[WhiteElo "2094"]
[BlackElo "2216"]
[Round "7.6"]
[Result "1/2-1/2"]
[TimeControl "5400+30"]

1. d4 {[%clk 1:30:46]} 1... Nf6 {[%clk 1:30:05]} 2. c4 {[%clk 1:30:59]} 2... e6
{[%clk 1:30:27]} 3. g3 {[%clk 1:31:15]} 3... c5 {[%clk 1:30:50]} 4. d5 {[%clk
1:30:58]} 4... exd5 {[%clk 1:31:13]} 5. cxd5 {[%clk 1:31:22]} 5... d6 {[%clk
1:31:36]} 6. Nc3 {[%clk 1:30:58]} 6... g6 {[%clk 1:31:58]} 7. Bg2 {[%clk
1:31:26]} 7... Bg7 {[%clk 1:32:24]} 8. Nf3 {[%clk 1:31:51]} 8... O-O {[%clk
1:32:47]} 9. O-O {[%clk 1:32:17]} 9... Re8 {[%clk 1:33:11]} 10. Bf4 {[%clk
1:32:10]} 10... h6 {[%clk 1:33:33]} 11. Qc1 {[%clk 1:13:10]} 11... g5 {[%clk
1:33:54]} 12. Bd2 {[%clk 1:01:57]} 12... Bf5 {[%clk 1:34:11]} 13. h4 {[%clk
1:00:28]} 13... g4 {[%clk 1:34:31]} 14. Ne1 {[%clk 1:00:52]} 14... Kh7 {[%clk
1:34:38]} 15. Nc2 {[%clk 0:58:21]} 15... Nbd7 {[%clk 1:33:35]} 16. Ne3 {[%clk
0:56:13]} 16... Bg6 {[%clk 1:33:58]} 17. Nc4 {[%clk 0:55:57]} 17... Ne5 {[%clk
1:24:24]} 18. Nxe5 {[%clk 0:53:42]} 18... Rxe5 {[%clk 1:24:46]} 19. Re1 {[%clk
0:45:19]} 19... a6 {[%clk 1:20:26]} 20. a4 {[%clk 0:39:31]} 20... Rb8 {[%clk
1:17:16]} 21. a5 {[%clk 0:31:04]} 21... Re8 {[%clk 1:00:47]} 22. Nd1 {[%clk
0:18:45]} 22... Nd7 {[%clk 0:45:02]} 23. Ne3 {[%clk 0:07:08]} 23... Ne5 {[%clk
0:42:18]} 24. Nc4 {[%clk 0:04:37]} 24... Nxc4 {[%clk 0:40:41]} 25. Qxc4 {[%clk
0:04:59]} 25... h5 {[%clk 0:40:02]} 26. Bc3 {[%clk 0:04:06]} 26... Bxc3 {[%clk
0:38:44]} 27. bxc3 {[%clk 0:03:37]} 27... Re5 {[%clk 0:37:47]} 28. e3 {[%clk
0:03:09]} 28... Qe7 {[%clk 0:36:39]} 29. Ra4 {[%clk 0:02:16]} 29... Kg7 {[%clk
0:35:57]} 30. Qb3 {[%clk 0:01:31]} 30... Qc7 {[%clk 0:35:07]} 31. Rea1 {[%clk
0:01:12]} 31... Ree8 {[%clk 0:20:54]} 32. R4a2 {[%clk 0:00:52]} 32... c4 {[%clk
0:16:16]} 33. Qa4 {[%clk 0:00:48]} 33... Qc5 {[%clk 0:15:25]} 34. Rb2 {[%clk
0:00:37]} 34... Rec8 {[%clk 0:14:15]} 35. Rb6 {[%clk 0:00:47]} 35... Rc7 {[%clk
0:13:16]} 36. Ra2 {[%clk 0:00:53]} 36... Bf5 {[%clk 0:11:11]} 37. Rab2 {[%clk
0:00:48]} 37... Bd7 {[%clk 0:10:40]} 38. Qa2 {[%clk 0:00:57]} 38... Bb5 {[%clk
0:10:00]} 39. Qb1 {[%clk 0:00:53]} 39... Re8 {[%clk 0:09:57]} 40. Rb4 {[%clk
0:00:51]} 40... Re5 {[%clk 0:09:45]} 41. Kh2 {[%clk 0:00:58]} 41... Rce7 {[%clk
0:09:42]} 42. Qc2 {[%clk 0:00:57]} 42... Qc7 {[%clk 0:09:25]} 43. Rb1 {[%clk
0:01:01]} 43... Qd7 {[%clk 0:09:30]} 44. Rb4 {[%clk 0:01:08]} 44... Kg8 {[%clk
0:05:59]} 45. Kg1 {[%clk 0:01:17]} 45... Kg7 {[%clk 0:06:12]} 46. Kh2 {[%clk
0:01:39]} 46... Kg8 {[%clk 0:06:14]} 47. Kg1 {[%clk 0:02:03]} 47... Kg7 {[%clk
0:06:37]} 1/2-1/2

[Variant "Standard"]
[Site "Europe Echecs"]